fUST/lending_fUST_20250605
["ID","MTS","AMOUNT","RATE_DAILY","PERIOD"]
[364528055,1749127846535,-3364.53683801,0.00020555,3]
[364528057,1749127846544,-1994.4,0.000206,2]
[364528059,1749127846553,-2055.92698789,0.000206,2]
[364528980,1749128336054,278.446687,0.00013699,2]
[364528987,1749128487115,212.12999999,0.00025,120]
[364528992,1749128590009,4198.47,0.00016,2]
[364528994,1749128715764,2446.0,0.00025,120]
[364529145,1749129038036,-903.31,0.00016618,2]
[364529147,1749129038050,-448.5873464,0.00017332,2]
[364529149,1749129038065,-193.78709777,0.00017428,2]
[364529151,1749129038075,-1806.61,0.00018129,2]
[364529153,1749129038086,-294.13210495,0.00018256,2]
[364529155,1749129038096,-156.587,0.00018345,2]
[364529157,1749129038106,-16000.0,0.00018345,2]
[364529159,1749129038115,-370.84,0.00018346,3]
[364529161,1749129038125,-160.0,0.00018355,2]
[364529163,1749129038135,-500.0,0.00018356,2]
[364529165,1749129038145,-430.0,0.00018356,2]
[364529167,1749129038155,-440.0,0.00018356,2]
[364529169,1749129038164,-440.0,0.00018356,2]
[364529171,1749129038174,-370.0,0.00018356,2]
[364529173,1749129038184,-430.0,0.00018356,2]
[364529175,1749129038194,-430.0,0.00018356,2]
[364529177,1749129038203,-430.0,0.00018356,2]
[364529200,1749129038421,-430.0,0.00018356,2]
[364529202,1749129038431,-410.0,0.00018356,2]
[364529204,1749129038444,-440.0,0.00018356,2]
[364529206,1749129038454,-440.0,0.00018356,2]
[364529208,1749129038463,-440.0,0.00018356,2]
[364529210,1749129038473,-440.0,0.00018356,2]
[364529212,1749129038482,-440.0,0.00018356,2]
[364529214,1749129038492,-430.0,0.00018356,2]
[364529216,1749129038502,-440.0,0.00018356,2]
[364529218,1749129038512,-430.0,0.00018356,2]
[364529220,1749129038522,-440.0,0.00018356,2]
[364529222,1749129038531,-440.0,0.00018356,2]
[364529224,1749129038540,-440.0,0.00018356,2]
[364529226,1749129038550,-440.0,0.00018356,2]
[364529228,1749129038561,-430.0,0.00018356,2]
[364529230,1749129038571,-440.0,0.00018356,2]
[364529232,1749129038580,-440.0,0.00018356,2]
[364529234,1749129038590,-440.0,0.00018356,2]
[364529236,1749129038599,-440.0,0.00018356,2]
[364529238,1749129038609,-440.0,0.00018356,2]
[364529240,1749129038619,-277.29118866,0.00018356,2]
[364529242,1749129038628,-491.02,0.00018356,2]
[364529244,1749129038638,-483.99,0.00018356,2]
[364529246,1749129038648,-440.0,0.00018356,2]
[364529248,1749129038663,-516.63655515,0.00018356,2]
[364529249,1749129038673,-440.0,0.00018356,2]
[364529252,1749129038683,-856.61,0.00018356,2]
[364529254,1749129038692,-440.0,0.00018356,2]
[364529255,1749129038702,-440.0,0.00018356,2]
[364529257,1749129038711,-440.0,0.00018356,2]
[364529259,1749129038721,-440.0,0.00018356,2]
[364529262,1749129038730,-440.0,0.00018356,2]
[364529263,1749129038740,-415.35967499,0.00018356,2]
[364529265,1749129038750,-440.0,0.00018356,2]
[364529268,1749129038759,-858.83,0.00018356,2]
[364529269,1749129038769,-440.0,0.00018356,2]
[364529271,1749129038779,-440.0,0.00018356,2]
[364529274,1749129038788,-535.8,0.00018356,2]
[364529275,1749129038797,-430.0,0.00018356,2]
[364529277,1749129038808,-587.49,0.00018356,2]
[364529279,1749129038818,-440.0,0.00018356,2]
[364529281,1749129038827,-254.3847957,0.00018356,2]
[364529283,1749129038837,-420.0,0.00018356,2]
[364529285,1749129038847,-440.0,0.00018356,2]
[364529287,1749129038856,-440.0,0.00018356,2]
[364529289,1749129038865,-414.99731037,0.00018356,2]
[364529291,1749129038874,-440.0,0.00018356,2]
[364529293,1749129038883,-440.0,0.00018356,2]
[364529295,1749129038892,-520.78,0.00018356,2]
[364529297,1749129038902,-440.0,0.00018356,2]
[364529299,1749129038912,-410.0,0.00018356,2]
[364529301,1749129038920,-440.0,0.00018356,2]
[364529303,1749129038930,-440.0,0.00018356,2]
[364529305,1749129038939,-430.0,0.00018356,2]
[364529306,1749129038949,-538.59,0.00018356,2]
[364529308,1749129038958,-440.0,0.00018356,2]
[364529310,1749129038968,-883.15,0.00018356,2]
[364529312,1749129038977,-440.0,0.00018356,2]
[364529314,1749129038988,-440.0,0.00018356,2]
[364529316,1749129038999,-440.0,0.00018356,2]
[364529318,1749129039008,-440.0,0.00018356,2]
[364529320,1749129039017,-440.0,0.00018356,2]
[364529322,1749129039027,-440.0,0.00018356,2]
[364529324,1749129039036,-440.0,0.00018356,2]
[364529326,1749129039047,-440.0,0.00018356,2]
[364529328,1749129039057,-440.0,0.00018356,2]
[364529330,1749129039066,-440.0,0.00018356,2]
[364529332,1749129039076,-440.0,0.00018356,2]
[364529334,1749129039086,-440.0,0.00018356,2]
[364529336,1749129039095,-440.0,0.00018356,2]
[364529338,1749129039104,-440.0,0.00018356,2]
[364529340,1749129039113,-440.0,0.00018356,2]
[364529342,1749129039123,-440.0,0.00018356,2]
[364529344,1749129039132,-440.0,0.00018356,2]
[364529346,1749129039141,-440.0,0.00018356,2]
[364529348,1749129039150,-440.0,0.00018356,2]
[364529350,1749129039159,-440.0,0.00018356,2]
[364529351,1749129039168,-440.0,0.00018356,2]
[364529352,1749129039180,-440.0,0.00018356,2]
[364529353,1749129039189,-412.76090061,0.00018356,2]
[364529354,1749129039199,-430.0,0.00018356,2]
[364529355,1749129039208,-440.0,0.00018356,2]
[364529356,1749129039219,-225.42819833,0.00018356,2]
[364529358,1749129039236,-430.0,0.00018356,2]
[364529360,1749129039246,-440.0,0.00018356,2]
[364529361,1749129039256,-400.0,0.00018356,2]
[364529363,1749129039266,-473.1,0.00018356,2]
[364529364,1749129039275,-440.0,0.00018356,2]
[364529365,1749129039284,-400.0,0.00018356,2]
[364529366,1749129039294,-672.93,0.00018356,2]
[364529367,1749129039305,-440.0,0.00018356,2]
[364529368,1749129039314,-440.0,0.00018356,2]
[364529369,1749129039324,-461.38,0.00018356,2]
[364529370,1749129039333,-440.0,0.00018356,2]
[364529371,1749129039343,-430.0,0.00018356,2]
[364529372,1749129039352,-430.0,0.00018356,2]
[364529373,1749129039369,-440.0,0.00018356,2]
[364529374,1749129039381,-430.0,0.00018356,2]
[364529376,1749129039391,-440.0,0.00018356,2]
[364529377,1749129039402,-440.0,0.00018356,2]
[364529378,1749129039412,-400.0,0.00018356,2]
[364529380,1749129039422,-400.0,0.00018356,2]
[364529382,1749129039432,-440.0,0.00018356,2]
[364529384,1749129039442,-440.0,0.00018356,2]
[364529386,1749129039452,-672.47,0.00018356,2]
[364529388,1749129039462,-440.0,0.00018356,2]
[364529391,1749129039472,-1568.37,0.00018356,2]
[364529393,1749129039482,-1375.97,0.00018356,2]
[364529395,1749129039491,-267.28749386,0.00018356,2]
[364529397,1749129039501,-440.0,0.00018356,2]
[364529399,1749129039511,-224.11485506,0.00018356,2]
[364529401,1749129039522,-1063.31,0.00018356,2]
[364529403,1749129039532,-4655.85,0.00018356,2]
[364529405,1749129039542,-440.0,0.00018356,2]
[364529407,1749129039551,-440.0,0.00018356,2]
[364529409,1749129039562,-440.0,0.00018356,2]
[364529411,1749129039571,-2801.57,0.00018356,2]
[364529413,1749129039581,-430.0,0.00018356,2]
[364529415,1749129039591,-400.0,0.00018356,2]
[364529417,1749129039600,-668.44,0.00018356,2]
[364529420,1749129039611,-440.0,0.00018356,2]
[364529423,1749129039620,-160.88685803,0.00018356,2]
[364529425,1749129039629,-440.0,0.00018356,2]
[364529428,1749129039639,-3430.82,0.00018356,2]
[364529432,1749129039650,-1383.59,0.00018356,2]
[364529434,1749129039660,-1004.79,0.00018356,2]
[364529437,1749129039669,-430.0,0.00018356,2]
[364529440,1749129039679,-440.0,0.00018356,2]
[364529443,1749129039688,-440.0,0.00018356,2]
[364529446,1749129039699,-998.67,0.00018356,2]
[364529449,1749129039708,-430.0,0.00018356,2]
[364529452,1749129039719,-430.0,0.00018356,2]
[364529455,1749129039730,-295.24297421,0.00018356,2]
[364529458,1749129039739,-430.0,0.00018356,2]
[364529461,1749129039749,-440.0,0.00018356,2]
[364529464,1749129039758,-280.03668619,0.00018356,2]
[364529467,1749129039768,-440.0,0.00018356,2]
[364529470,1749129039777,-440.0,0.00018356,2]
[364529473,1749129039787,-440.0,0.00018356,2]
[364529476,1749129039796,-842.0,0.00018356,2]
[364529479,1749129039805,-440.0,0.00018356,2]
[364529482,1749129039815,-440.0,0.00018356,2]
[364529485,1749129039824,-430.0,0.00018356,2]
[364529488,1749129039834,-400.0,0.00018356,2]
[364529491,1749129039843,-440.0,0.00018356,2]
[364529494,1749129039852,-729.47,0.00018356,2]
[364529497,1749129039863,-440.0,0.00018356,2]
[364529500,1749129039872,-440.0,0.00018356,2]
[364529503,1749129039882,-1100.89,0.00018356,2]
[364529506,1749129039891,-440.0,0.00018356,2]
[364529510,1749129039901,-628.44,0.00018356,2]
[364529512,1749129039911,-440.0,0.00018356,2]
[364529515,1749129039920,-440.0,0.00018356,2]
[364529519,1749129039931,-440.0,0.00018356,2]
[364529522,1749129039940,-440.0,0.00018356,2]
[364529524,1749129039950,-1767.63,0.00018356,2]
[364529527,1749129039960,-440.0,0.00018356,2]
[364529530,1749129039970,-440.0,0.00018356,2]
[364529533,1749129039979,-523.36,0.00018356,2]
[364529536,1749129039989,-722.24,0.00018356,2]
[364529539,1749129039998,-440.0,0.00018356,2]
[364529541,1749129040007,-400.16523736,0.00018356,2]
[364529543,1749129040017,-440.0,0.00018356,2]
[364529545,1749129040026,-430.0,0.00018356,2]
[364529546,1749129040036,-440.0,0.00018356,2]
[364529549,1749129040046,-525.45,0.00018356,2]
[364529550,1749129040055,-440.0,0.00018356,2]
[364529554,1749129040071,-440.0,0.00018356,2]
[364529557,1749129040082,-440.0,0.00018356,2]
[364529560,1749129040091,-440.0,0.00018356,2]
[364529563,1749129040101,-440.0,0.00018356,2]
[364529566,1749129040110,-440.0,0.00018356,2]
[364529569,1749129040123,-440.0,0.00018356,2]
[364529571,1749129040136,-440.0,0.00018356,2]
[364529574,1749129040148,-1310.04,0.00018356,2]
[364529577,1749129040158,-440.0,0.00018356,2]
[364529580,1749129040167,-440.0,0.00018356,2]
[364529582,1749129040176,-440.0,0.00018356,2]
[364529585,1749129040186,-440.0,0.00018356,2]
[364529588,1749129040196,-591.03,0.00018356,2]
[364529591,1749129040206,-777.48,0.00018356,2]
[364529594,1749129040216,-6412.96,0.00018356,2]
[364529596,1749129040230,-440.0,0.00018356,2]
[364529599,1749129040239,-1989.41,0.00018356,2]
[364529602,1749129040249,-440.0,0.00018356,2]
[364529605,1749129040259,-440.0,0.00018356,2]
[364529608,1749129040268,-289.34705371,0.00018356,2]
[364529611,1749129040278,-440.0,0.00018356,2]
[364529614,1749129040287,-2786.91,0.00018356,2]
[364529617,1749129040297,-440.0,0.00018356,2]
[364529620,1749129040306,-3698.19,0.00018356,2]
[364529623,1749129040316,-440.0,0.00018356,2]
[364529626,1749129040326,-1298.6,0.00018356,2]
[364529628,1749129040336,-440.0,0.00018356,2]
[364529631,1749129040345,-2628.56,0.00018356,2]
[364529634,1749129040355,-750.16,0.00018356,2]
[364529637,1749129040364,-410.0,0.00018356,2]
[364529640,1749129040374,-441.11,0.00018356,2]
[364529643,1749129040384,-386.44811244,0.00018356,2]
[364529646,1749129040393,-642.44,0.00018356,2]
[364529649,1749129040403,-1111.6,0.00018356,2]
[364529652,1749129040412,-440.0,0.00018356,2]
[364529655,1749129040422,-845.64,0.00018356,2]
[364529658,1749129040432,-4147.91,0.00018356,2]
[364529662,1749129040442,-525.79,0.00018356,2]
[364529665,1749129040452,-440.0,0.00018356,2]
[364529668,1749129040464,-657.97,0.00018356,2]
[364529671,1749129040474,-440.0,0.00018356,2]
[364529675,1749129040483,-440.0,0.00018356,2]
[364529679,1749129040493,-500.0,0.00018356,2]
[364529682,1749129040503,-440.0,0.00018356,2]
[364529687,1749129040512,-430.0,0.00018356,2]
[364529691,1749129040523,-740.0,0.000185,2]
[364529695,1749129040533,-432.78039759,0.0001853,2]
[364529698,1749129040543,-440.0,0.0001863,2]
[364529701,1749129040552,-440.0,0.0001863,2]
[364529704,1749129040562,-440.0,0.0001863,2]
[364529707,1749129040572,-440.0,0.0001863,2]
[364529710,1749129040583,-440.0,0.0001863,2]
[364529713,1749129040593,-430.0,0.0001863,2]
[364529716,1749129040603,-440.0,0.0001863,2]
[364529719,1749129040613,-420.0,0.0001863,2]
[364529722,1749129040623,-420.0,0.0001863,2]
[364529724,1749129040633,-440.0,0.0001863,2]
[364529727,1749129040643,-440.0,0.0001863,2]
[364529730,1749129040653,-183.17523759,0.0001863,2]
[364529735,1749129040665,-483.99,0.0001863,2]
[364529737,1749129040675,-440.0,0.0001863,2]
[364529741,1749129040684,-440.0,0.0001863,2]
[364529744,1749129040694,-856.61,0.0001863,2]
[364529747,1749129040705,-440.0,0.0001863,2]
[364529749,1749129040715,-440.0,0.0001863,2]
[364529753,1749129040726,-440.0,0.0001863,2]
[364529755,1749129040736,-440.0,0.0001863,2]
[364529758,1749129040746,-440.0,0.0001863,2]
[364529761,1749129040756,-440.0,0.0001863,2]
[364529764,1749129040765,-858.83,0.0001863,2]
[364529767,1749129040774,-440.0,0.0001863,2]
[364529770,1749129040784,-440.0,0.0001863,2]
[364529773,1749129040794,-535.8,0.0001863,2]
[364529776,1749129040803,-587.49,0.0001863,2]
[364529778,1749129040814,-160.62495757,0.0001863,2]
[364529782,1749129040824,-440.0,0.0001863,2]
[364529785,1749129040833,-440.0,0.0001863,2]
[364529787,1749129040842,-440.0,0.0001863,2]
[364529790,1749129040852,-440.0,0.0001863,2]
[364529793,1749129040862,-440.0,0.0001863,2]
[364529797,1749129040872,-440.0,0.0001863,2]
[364529800,1749129040881,-420.0,0.0001863,2]
[364529803,1749129040891,-440.0,0.0001863,2]
[364529805,1749129040900,-883.15,0.0001863,2]
[364529808,1749129040911,-440.0,0.0001863,2]
[364529810,1749129040920,-440.0,0.0001863,2]
[364529813,1749129040930,-440.0,0.0001863,2]
[364529817,1749129040940,-440.0,0.0001863,2]
[364529818,1749129040951,-440.0,0.0001863,2]
[364529820,1749129040960,-440.0,0.0001863,2]
[364529822,1749129040970,-440.0,0.0001863,2]
[364529823,1749129040979,-440.0,0.0001863,2]
[364529824,1749129040989,-440.0,0.0001863,2]
[364529825,1749129040998,-440.0,0.0001863,2]
[364529826,1749129041008,-440.0,0.0001863,2]
[364529827,1749129041018,-440.0,0.0001863,2]
[364529829,1749129041028,-440.0,0.0001863,2]
[364529831,1749129041037,-560.82255718,0.0001863,2]
[364529833,1749129041048,-440.0,0.0001863,2]
[364529835,1749129041058,-440.0,0.0001863,2]
[364529837,1749129041068,-440.0,0.0001863,2]
[364529839,1749129041077,-440.0,0.0001863,2]
[364529842,1749129041088,-440.0,0.0001863,2]
[364529845,1749129041098,-440.0,0.0001863,2]
[364529848,1749129041108,-440.0,0.0001863,2]
[364529851,1749129041118,-440.0,0.0001863,2]
[364529854,1749129041128,-440.0,0.0001863,2]
[364529856,1749129041138,-440.0,0.0001863,2]
[364529859,1749129041148,-473.1,0.0001863,2]
[364529862,1749129041157,-440.0,0.0001863,2]
[364529865,1749129041167,-672.93,0.0001863,2]
[364529868,1749129041177,-440.0,0.0001863,2]
[364529871,1749129041187,-440.0,0.0001863,2]
[364529874,1749129041197,-461.38,0.0001863,2]
[364529877,1749129041207,-440.0,0.0001863,2]
[364529880,1749129041216,-440.0,0.0001863,2]
[364529883,1749129041229,-440.0,0.0001863,2]
[364529886,1749129041239,-440.0,0.0001863,2]
[364529889,1749129041248,-440.0,0.0001863,2]
[364529892,1749129041258,-440.0,0.0001863,2]
[364529894,1749129041268,-672.47,0.0001863,2]
[364529896,1749129041278,-440.0,0.0001863,2]
[364529898,1749129041287,-1568.37,0.0001863,2]
[364529900,1749129041296,-1375.97,0.0001863,2]
[364529902,1749129041306,-440.0,0.0001863,2]
[364529904,1749129041316,-1063.31,0.0001863,2]
[364529906,1749129041325,-4655.85,0.0001863,2]
[364529908,1749129041335,-440.0,0.0001863,2]
[364529910,1749129041344,-440.0,0.0001863,2]
[364529912,1749129041354,-440.0,0.0001863,2]
[364529914,1749129041363,-2801.57,0.0001863,2]
[364529916,1749129041372,-668.44,0.0001863,2]
[364529917,1749129041382,-440.0,0.0001863,2]
[364529919,1749129041392,-440.0,0.0001863,2]
[364529922,1749129041402,-3430.82,0.0001863,2]
[364529923,1749129041412,-1383.59,0.0001863,2]
[364529926,1749129041422,-1004.79,0.0001863,2]
[364529928,1749129041432,-440.0,0.0001863,2]
[364529930,1749129041442,-263.80068983,0.0001863,2]
[364529931,1749129041453,-998.67,0.0001863,2]
[364529934,1749129041462,-420.0,0.0001863,2]
[364529936,1749129041472,-430.0,0.0001863,2]
[364529938,1749129041482,-430.0,0.0001863,2]
[364529942,1749129041492,-440.0,0.0001863,2]
[364529945,1749129041501,-842.0,0.0001863,2]
[364529947,1749129041511,-440.0,0.0001863,2]
[364529950,1749129041520,-440.0,0.0001863,2]
[364529954,1749129041530,-440.0,0.0001863,2]
[364529956,1749129041540,-729.47,0.0001863,2]
[364529959,1749129041549,-440.0,0.0001863,2]
[364529962,1749129041559,-440.0,0.0001863,2]
[364529965,1749129041568,-1100.89,0.0001863,2]
[364529968,1749129041579,-440.0,0.0001863,2]
[364529971,1749129041588,-628.44,0.0001863,2]
[364529974,1749129041598,-440.0,0.0001863,2]
[364529978,1749129041608,-440.0,0.0001863,2]
[364529980,1749129041617,-440.0,0.0001863,2]
[364529984,1749129041626,-474.01025371,0.0001863,2]
[364529986,1749129041636,-1767.63,0.0001863,2]
[364529989,1749129041645,-430.0,0.0001863,2]
[364529992,1749129041655,-420.0,0.0001863,2]
[364529995,1749129041664,-523.36,0.0001863,2]
[364529998,1749129041674,-722.24,0.0001863,2]
[364530001,1749129041684,-440.0,0.0001863,2]
[364530004,1749129041693,-430.0,0.0001863,2]
[364530007,1749129041703,-440.0,0.0001863,2]
[364530010,1749129041712,-525.45,0.0001863,2]
[364530013,1749129041721,-440.0,0.0001863,2]
[364530016,1749129041730,-440.0,0.0001863,2]
[364530019,1749129041740,-440.0,0.0001863,2]
[364530022,1749129041749,-440.0,0.0001863,2]
[364530024,1749129041759,-420.0,0.0001863,2]
[364530026,1749129041769,-420.0,0.0001863,2]
[364530029,1749129041779,-440.0,0.0001863,2]
[364530031,1749129041788,-1310.04,0.0001863,2]
[364530032,1749129041797,-420.0,0.0001863,2]
[364530034,1749129041807,-440.0,0.0001863,2]
[364530037,1749129041817,-440.0,0.0001863,2]
[364530038,1749129041826,-440.0,0.0001863,2]
[364530041,1749129041835,-440.0,0.0001863,2]
[364530043,1749129041845,-591.03,0.0001863,2]
[364530044,1749129041855,-777.48,0.0001863,2]
[364530046,1749129041864,-6412.96,0.0001863,2]
[364530048,1749129041874,-440.0,0.0001863,2]
[364530050,1749129041883,-1989.41,0.0001863,2]
[364530052,1749129041892,-349.81676198,0.0001863,2]
[364530055,1749129041902,-440.0,0.0001863,2]
[364530056,1749129041913,-440.0,0.0001863,2]
[364530059,1749129041922,-2786.91,0.0001863,2]
[364530060,1749129041932,-440.0,0.0001863,2]
[364530078,1749129042090,-3698.19,0.0001863,2]
[364530080,1749129042100,-440.0,0.0001863,2]
[364530082,1749129042110,-1298.6,0.0001863,2]
[364530084,1749129042120,-440.0,0.0001863,2]
[364530086,1749129042129,-2628.56,0.0001863,2]
[364530088,1749129042139,-750.16,0.0001863,2]
[364530090,1749129042148,-441.11,0.0001863,2]
[364530092,1749129042158,-642.44,0.0001863,2]
[364530094,1749129042167,-1111.6,0.0001863,2]
[364530096,1749129042176,-440.0,0.0001863,2]
[364530098,1749129042186,-845.64,0.0001863,2]
[364530100,1749129042197,-4147.91,0.0001863,2]
[364530102,1749129042206,-525.79,0.0001863,2]
[364530104,1749129042216,-440.0,0.0001863,2]
[364530106,1749129042228,-657.97,0.0001863,2]
[364530108,1749129042238,-440.0,0.0001863,2]
[364530110,1749129042248,-440.0,0.0001863,2]
[364530112,1749129042257,-440.0,0.0001863,2]
[364530114,1749129042267,-151.0,0.00018822,2]
[364530116,1749129042276,-151.0,0.00018822,2]
[364530118,1749129042286,-500.0,0.00018822,2]
[364530120,1749129042296,-500.0,0.00018822,2]
[364530122,1749129042306,-151.0,0.00018822,2]
[364530124,1749129042315,-500.0,0.00018822,2]
[364530126,1749129042325,-199.47264877,0.00018822,2]
[364530128,1749129042334,-151.0,0.00018849,2]
[364530130,1749129042343,-151.0,0.00018849,2]
[364530131,1749129042353,-500.0,0.00018849,2]
[364530134,1749129042364,-500.0,0.00018849,2]
[364530135,1749129042373,-500.0,0.00018849,2]
[364530137,1749129042383,-198.0,0.00018877,2]
[364530139,1749129042392,-151.0,0.00018877,2]
[364530141,1749129042401,-500.0,0.00018877,2]
[364530143,1749129042411,-500.0,0.00018877,2]
[364530146,1749129042421,-519.70768548,0.00018877,2]
[364530149,1749129042430,-16000.0,0.00018893,2]
[364530152,1749129042440,-440.47708401,0.00018904,2]
[364530155,1749129042450,-555.8,0.00018904,2]
[364530158,1749129042460,-410.0,0.00018904,2]
[364530160,1749129042469,-440.0,0.00018904,2]
[364530162,1749129042479,-440.0,0.00018904,2]
[364530164,1749129042489,-440.0,0.00018904,2]
[364530166,1749129042499,-570.72,0.00018904,2]
[364530169,1749129042509,-440.0,0.00018904,2]
[364530171,1749129042519,-483.99,0.00018904,2]
[364530173,1749129042528,-355.81680347,0.00018904,2]
[364530175,1749129042538,-440.0,0.00018904,2]
[364530177,1749129042548,-856.61,0.00018904,2]
[364530179,1749129042558,-440.0,0.00018904,2]
[364530182,1749129042568,-440.0,0.00018904,2]
[364530185,1749129042578,-524.06645434,0.00018904,2]
[364530187,1749129042588,-440.0,0.00018904,2]
[364530189,1749129042598,-440.0,0.00018904,2]
[364530191,1749129042608,-440.0,0.00018904,2]
[364530194,1749129042618,-858.83,0.00018904,2]
[364530198,1749129042627,-440.0,0.00018904,2]
[364530201,1749129042637,-440.0,0.00018904,2]
[364530205,1749129042647,-535.8,0.00018904,2]
[364530209,1749129042656,-587.49,0.00018904,2]
[364530211,1749129042666,-440.0,0.00018904,2]
[364530213,1749129042675,-518.03307538,0.00018904,2]
[364530215,1749129042685,-440.0,0.00018904,2]
[364530217,1749129042695,-440.0,0.00018904,2]
[364530219,1749129042706,-384.24276267,0.00018904,2]
[364530221,1749129042716,-440.0,0.00018904,2]
[364530223,1749129042726,-440.0,0.00018904,2]
[364530225,1749129042736,-883.15,0.00018904,2]
[364530227,1749129042746,-440.0,0.00018904,2]
[364530229,1749129042755,-440.0,0.00018904,2]
[364530231,1749129042764,-440.0,0.00018904,2]
[364530233,1749129042774,-440.0,0.00018904,2]
[364530235,1749129042783,-440.0,0.00018904,2]
[364530237,1749129042792,-440.0,0.00018904,2]
[364530239,1749129042802,-440.0,0.00018904,2]
[364530241,1749129042811,-297.02708098,0.00018904,2]
[364530243,1749129042821,-440.0,0.00018904,2]
[364530245,1749129042830,-440.0,0.00018904,2]
[364530246,1749129042839,-440.0,0.00018904,2]
[364530248,1749129042849,-440.0,0.00018904,2]
[364530251,1749129042859,-440.0,0.00018904,2]
[364530252,1749129042868,-440.0,0.00018904,2]
[364530254,1749129042878,-440.0,0.00018904,2]
[364530256,1749129042887,-440.0,0.00018904,2]
[364530258,1749129042896,-440.0,0.00018904,2]
[364530260,1749129042905,-440.0,0.00018904,2]
[364530262,1749129042914,-410.0,0.00018904,2]
[364530264,1749129042924,-410.0,0.00018904,2]
[364530266,1749129042934,-440.0,0.00018904,2]
[364530268,1749129042943,-440.0,0.00018904,2]
[364530270,1749129042954,-440.0,0.00018904,2]
[364530272,1749129042963,-473.1,0.00018904,2]
[364530274,1749129042974,-224.75107337,0.00018904,2]
[364530276,1749129042983,-672.93,0.00018904,2]
[364530278,1749129042994,-204.36756907,0.00018904,2]
[364530280,1749129043003,-440.0,0.00018904,2]
[364530282,1749129043012,-461.38,0.00018904,2]
[364530284,1749129043022,-440.0,0.00018904,2]
[364530286,1749129043032,-440.0,0.00018904,2]
[364530288,1749129043041,-440.0,0.00018904,2]
[364530290,1749129043051,-440.0,0.00018904,2]
[364530292,1749129043060,-440.0,0.00018904,2]
[364530294,1749129043070,-440.0,0.00018904,2]
[364530296,1749129043080,-672.47,0.00018904,2]
[364530298,1749129043091,-440.0,0.00018904,2]
[364530300,1749129043101,-1568.37,0.00018904,2]
[364530302,1749129043111,-1375.97,0.00018904,2]
[364530304,1749129043122,-440.0,0.00018904,2]
[364530306,1749129043132,-1063.31,0.00018904,2]
[364530309,1749129043142,-4655.85,0.00018904,2]
[364530312,1749129043151,-440.0,0.00018904,2]
[364530314,1749129043160,-440.0,0.00018904,2]
[364530316,1749129043170,-440.0,0.00018904,2]
[364530318,1749129043180,-2801.57,0.00018904,2]
[364530320,1749129043189,-668.44,0.00018904,2]
[364530322,1749129043199,-440.0,0.00018904,2]
[364530324,1749129043208,-440.0,0.00018904,2]
[364530326,1749129043218,-3430.82,0.00018904,2]
[364530327,1749129043231,-1383.59,0.00018904,2]
[364530329,1749129043241,-1004.79,0.00018904,2]